bitfinex-derivatives/quotes_SOLF0:USTF0_20250923
["timestamp","ask_amount","ask_price","bid_price","bid_amount"]
[1758645311168,132.44,218.9,218.79,7.28]
[1758645311367,125.18,218.9,218.73,71.245]
[1758645311568,7.66,218.89,218.71,4.1124]
[1758645311766,7.66,218.87,218.67,7.32]
[1758645311966,5.20245452,218.85,218.68,63.9815]
[1758645312165,7.66,218.84,218.7,63.9742]
[1758645312469,7.66,218.84,218.71,63.9717]
[1758645312664,7.66,218.84,218.73,68.0777]
[1758645312870,7.66,218.84,218.75,63.9593]
[1758645313264,7.66,218.84,218.77,68.0659]
[1758645313572,13.61176092,219.01,218.86,7.32]
[1758645313769,13.72,219.31,219.04,63.8746]
[1758645313970,5.20245452,219.26,219.06,63.8687]
[1758645314171,5.20245452,219.26,219.07,63.8652]
[1758645314474,5.20245452,219.29,219.06,63.8701]
[1758645314769,441.4815,219.3,219.06,63.8701]
[1758645314770,437.38,219.3,219.09,63.8594]
[1758645315069,437.38,219.3,219.12,63.8523]
[1758645315372,437.38,219.3,219.14,4.1044]
[1758645315572,7.66,219.29,219.14,67.951]
[1758645315973,7.66,219.29,219.14,67.9513]
[1758645316277,63.8131,219.26,219.03,7.32]
[1758645316577,5.20245452,219.23,219.03,63.8787]
[1758645316773,7.66,219.21,219.04,4.1063]
[1758645317076,7.66,219.21,219.09,63.8594]
[1758645317374,7.66,219.21,219.1,63.8582]
[1758645317684,7.66,219.21,219.07,7.32]
[1758645317874,7.66,219.21,219.08,63.8645]
[1758645318074,7.66,219.21,219.1,63.8588]
[1758645318376,130.16,219.2,219.09,67.9668]
[1758645318674,130.16,219.2,219.11,63.8554]
[1758645318874,137.86,219.27,219.15,67.9482]
[1758645319074,137.86,219.27,219.13,63.8481]
[1758645319276,137.86,219.27,219.13,63.85]
[1758645319672,137.86,219.27,219.12,12.52245452]
[1758645320066,137.86,219.27,219.12,7.32]
[1758645320270,63.8196,219.24,219.06,7.32]
[1758645320575,7.66,219.23,219.06,7.32]
[1758645321371,67.9214,219.24,219.02,5.20245452]
[1758645321372,7.66,219.21,219.02,5.20245452]
[1758645321572,7.66,219.19,219.02,5.20245452]
[1758645322577,7.66,219.25,219.12,5.20245452]
[1758645322777,0.72490229,219.29,219.12,73.16035452]
[1758645322976,0.72490229,219.29,219.13,7.32]
[1758645323376,483.16,219.3,219.17,5.20245452]
[1758645324080,7.05,219.28,219.13,7.32]
[1758645324289,7.05,219.28,219.13,12.52245452]
[1758645324672,7.05,219.28,219.13,7.32]
[1758645325080,4.102,219.27,219.13,7.32]
[1758645325779,67.9208,219.24,219.13,7.32]
[1758645325977,137.03,219.23,219.13,7.32]
[1758645326581,4.1029,219.22,219.13,7.32]
[1758645326783,63.8303,219.2,219.07,12.69245452]
[1758645327489,63.8452,219.15,219.02,5.20245452]
[1758645327678,129.72,219.14,219.02,5.20245452]
[1758645328383,129.72,219.14,218.96,7.49]
[1758645328384,7.05,219.11,218.96,7.49]
[1758645328884,75.0113,219.11,218.96,7.49]
[1758645329585,4.1055,219.09,218.96,7.49]
[1758645329886,63.8621,219.09,218.96,7.49]
[1758645330378,70.9188,219.07,218.96,7.49]
[1758645330586,63.8749,219.05,218.9,7.49]
[1758645330782,133.486,219.06,218.9,7.49]
[1758645330985,193.2507,219.06,218.9,7.49]
[1758645331482,4.1064,219.04,218.92,4.1084]
[1758645331679,63.9024,218.96,218.75,63.9596]
[1758645331981,70.9742,218.88,218.72,5.20245452]
[1758645332183,41.34,218.87,218.72,5.20245452]
[1758645332582,41.34,218.87,218.72,69.17225452]
[1758645332786,116.56,218.87,218.71,5.20245452]
[1758645332986,120.6695,218.87,218.71,69.17435452]
[1758645333285,136.85,218.88,218.72,63.9694]
[1758645333785,7.05,218.88,218.73,7.49]
[1758645333982,7.05,218.88,218.76,4.1114]
[1758645334281,7.05,218.89,218.73,7.49]
[1758645334586,7.05,218.89,218.75,63.9598]
[1758645334782,7.05,218.89,218.76,63.9581]
[1758645334988,129.88,218.9,218.77,7.49]
[1758645335686,129.88,218.9,218.79,4.1109]
[1758645335988,7.05,218.91,218.77,7.49]
[1758645336178,4.1089,218.9,218.77,7.49]
[1758645336486,63.9175,218.9,218.77,7.49]
[1758645336687,4.1094,218.88,218.77,7.49]
[1758645337185,4.1094,218.88,218.75,4.1116]
[1758645337186,63.9262,218.87,218.71,7.49]
[1758645337384,7.05,218.84,218.71,7.49]
[1758645337583,129.66,218.83,218.71,7.49]
[1758645337786,4.1108,218.81,218.71,7.49]
[1758645338084,70.9921,218.82,218.64,71.4826]
[1758645338290,7.05,218.82,218.65,63.9902]
[1758645338783,4.1109,218.8,218.67,4.1131]
[1758645338988,63.9468,218.8,218.64,7.49]
[1758645339487,7.05,218.82,218.66,63.9874]
[1758645339681,86.2,218.81,218.65,63.9901]
[1758645339878,7.05,218.77,218.64,7.49]
[1758645340791,7.05,218.73,218.58,71.5]
[1758645341796,7.05,218.73,218.58,7.49]
[1758645341993,7.05,218.69,218.58,7.49]
[1758645342494,129.52,218.77,218.59,64.0067]
[1758645342693,7.05,218.73,218.58,7.49]
[1758645342896,4.1126,218.71,218.58,11.6049]
[1758645343394,129.52,218.7,218.58,11.6049]
[1758645344493,7.05,218.73,218.58,11.6049]
[1758645344691,129.56,218.7,218.58,11.6049]
[1758645344893,129.4,218.71,218.6,64.0043]
[1758645345195,7.05,218.81,218.63,63.996]
[1758645345398,7.05,218.79,218.66,4.1134]
[1758645346087,129.24,218.78,218.66,4.1134]
[1758645346288,7.05,218.79,218.67,63.9833]
[1758645346493,7.05,218.79,218.66,7.49]
[1758645346794,7.05,218.79,218.71,4.1124]
[1758645347191,136.31,218.84,218.71,63.9725]
[1758645347394,136.31,218.84,218.73,4.1121]
[1758645347795,7.05,218.84,218.73,4.1121]
[1758645347996,129.1,218.83,218.73,4.1121]
[1758645348293,7.05,218.84,218.75,7.49]
[1758645348495,7.05,218.84,218.69,76.67045452]
[1758645349195,7.05,218.84,218.71,63.9725]
[1758645349398,7.05,218.84,218.74,71.4538]
[1758645349592,7.05,218.84,218.77,4.1113]
[1758645349796,7.05,218.84,218.66,69.18915452]
[1758645350094,7.05,218.84,218.68,63.9813]
[1758645350598,4.1103,218.83,218.7,4.1126]
[1758645350798,4.1103,218.83,218.68,63.9813]
[1758645350995,135.99,218.84,218.71,71.4626]
[1758645351797,140.1001,218.84,218.74,4.1118]
[1758645352001,135.99,218.84,218.71,7.49]
[1758645352203,4.1108,218.8,218.71,7.49]
[1758645352499,199.9257,218.84,218.71,7.49]
[1758645353398,4.1107,218.81,218.72,4.1123]
[1758645354307,128.62,218.83,218.72,4.1123]
[1758645354508,11.1602,218.84,218.74,4.1119]
[1758645354805,139.7002,218.84,218.74,4.1119]
[1758645355201,139.7002,218.84,218.71,7.49]
[1758645355202,4.1104,218.82,218.71,11.6023]
[1758645355399,199.5256,218.84,218.71,7.49]
[1758645355796,4.1108,218.8,218.71,7.49]
[1758645357006,70.9168,218.8,218.67,4.1131]
[1758645357304,6.97,218.8,218.67,4.1131]
[1758645357497,4.1114,218.77,218.67,4.1131]
[1758645358100,6.97,218.76,218.66,7.68]
[1758645358807,11.0817,218.76,218.66,7.68]
[1758645360305,6.97,218.73,218.6,7.68]
[1758645362005,4.1132,218.67,218.6,7.68]
[1758645362201,63.9712,218.72,218.6,7.68]
[1758645362406,6.97,218.73,218.6,7.68]
[1758645362804,4.1131,218.68,218.6,7.68]
[1758645363001,63.9788,218.69,218.55,7.68]
[1758645363205,70.943,218.71,218.55,7.68]
[1758645363407,4.1132,218.68,218.58,4.1148]
[1758645363612,63.9764,218.7,218.55,7.68]
[1758645363912,4.1136,218.66,218.57,4.1151]
[1758645364309,6.97,218.71,218.55,7.68]
[1758645364708,4.1133,218.67,218.59,4.1147]
[1758645365710,4.1136,218.65,218.56,4.1151]
[1758645365905,4.1136,218.65,218.55,7.68]
[1758645365906,6.97,218.66,218.55,7.68]
[1758645366412,6.97,218.62,218.52,99.09546173]
[1758645366716,6.97,218.6,218.45,7.68]
[1758645367009,4.1151,218.58,218.45,7.68]
[1758645367312,6.97,218.57,218.45,7.68]
[1758645367715,4.1155,218.55,218.45,7.68]
[1758645368213,64.0232,218.54,218.4,7.68]
[1758645368613,6.97,218.52,218.4,7.68]
[1758645368808,4.1167,218.49,218.35,11.7992]
[1758645369617,4.117,218.47,218.35,7.68]
[1758645369917,64.047,218.46,218.35,7.68]
[1758645370415,6.97,218.48,218.36,64.0746]
[1758645370711,6.97,218.48,218.35,7.68]
[1758645371112,6.97,218.48,218.38,4.1186]
[1758645371314,6.97,218.52,218.39,7.68]
[1758645371506,126.96,218.51,218.39,7.68]
[1758645371709,6.97,218.52,218.39,7.68]
[1758645371904,133.85,218.52,218.39,7.68]
[1758645372215,6.97,218.52,218.42,4.1179]
[1758645372510,7.1,218.58,218.43,71.2245]
[1758645372815,7.1,218.58,218.43,7.17]
[1758645373115,7.1,218.58,218.47,7.17]
[1758645374317,126.76,218.63,218.5,4.1164]
[1758645374512,133.82,218.65,218.51,71.201]
[1758645375019,4.1138,218.64,218.54,4.1156]
[1758645375417,4.1138,218.64,218.51,7.17]
[1758645375617,4.1138,218.64,218.53,4.1158]
[1758645375822,4.1138,218.64,218.51,7.17]
[1758645376023,7.1,218.61,218.5,4.1164]
[1758645376318,7.1,218.61,218.46,7.17]
[1758645376519,7.1,218.61,218.46,71.2154]
[1758645376919,7.1,218.61,218.47,64.0423]
[1758645377121,7.1,218.61,218.48,64.0398]
[1758645377926,11.2144,218.61,218.51,4.1162]
[1758645379124,7.1,218.61,218.46,7.17]
[1758645379428,190.281,218.62,218.41,7.17]
[1758645379429,7.1,218.57,218.41,7.17]
[1758645379624,7.1,218.57,218.42,4.1178]
[1758645379820,7.1,218.55,218.42,4.1178]
[1758645380325,4.1163,218.51,218.42,4.1178]
[1758645380916,4.1167,218.49,218.41,7.17]
[1758645381119,4.1167,218.49,218.34,7.17]
[1758645381322,7.1,218.48,218.34,7.17]
[1758645381926,4.1176,218.44,218.34,11.2894]
[1758645382127,7.1,218.48,218.34,7.17]
[1758645383424,4.1179,218.43,218.34,7.17]
[1758645384331,4.1182,218.41,218.34,7.17]
[1758645384538,7.26,218.44,218.34,7.17]
[1758645385339,7.26,218.44,218.29,7.37]
[1758645385340,7.26,218.43,218.29,7.37]
[1758645385539,133.18,218.43,218.29,7.37]
[1758645385840,4.1184,218.4,218.29,7.37]
[1758645386040,7.26,218.43,218.32,64.0865]
[1758645386243,7.26,218.51,218.34,64.0805]
[1758645386442,7.26,218.48,218.38,4.1186]
[1758645386740,479.12,218.52,218.39,7.37]
[1758645387337,125.96,218.51,218.41,4.118]
[1758645387636,353.18,218.52,218.41,4.118]
[1758645387637,353.18,218.52,218.41,64.0606]
[1758645387831,125.92,218.56,218.43,7.37]
[1758645388238,4.1155,218.55,218.43,7.37]
[1758645388444,7.26,218.55,218.43,7.37]
[1758645388938,4.1159,218.53,218.43,7.37]
[1758645389145,72.15417143,218.62,218.43,7.37]
[1758645389146,7.26,218.62,218.45,64.0488]
[1758645389341,7.26,218.6,218.43,7.37]
[1758645389543,7.26,218.56,218.43,7.37]
[1758645390042,64.0206,218.55,218.43,7.37]
[1758645390237,7.26,218.53,218.37,7.37]
[1758645390441,125.98,218.52,218.37,7.37]
[1758645390844,125.98,218.52,218.42,4.1179]
[1758645391041,125.98,218.52,218.37,7.37]
[1758645391246,7.26,218.5,218.37,7.37]
[1758645392643,71.2948,218.5,218.37,7.37]
[1758645393040,125.72,218.49,218.35,7.37]
[1758645393446,4.117,218.48,218.39,4.1185]
[1758645394043,4.1172,218.46,218.37,4.1189]
[1758645394247,125.72,218.49,218.35,7.37]
[1758645394847,7.26,218.5,218.4,7.37]
[1758645395250,7.26,218.5,218.36,64.0752]
[1758645395937,7.26,218.48,218.35,7.37]
[1758645397448,11.3776,218.44,218.35,11.4891]
[1758645397849,7.26,218.44,218.35,7.37]
[1758645398448,125.34,218.43,218.28,7.37]
[1758645398752,7.26,218.42,218.28,7.37]
[1758645398946,4.1189,218.37,218.28,7.37]
[1758645399652,7.26,218.38,218.28,7.37]
[1758645400153,7.26,218.38,218.3,4.12]
[1758645400558,7.26,218.38,218.23,7.37]
[1758645401249,4.1193,218.36,218.24,4.1212]
[1758645401448,4.1193,218.36,218.23,7.37]
[1758645401647,125.26,218.39,218.23,11.4914]
[1758645401648,4.1195,218.34,218.23,11.4914]
[1758645401849,7.26,218.34,218.23,11.4914]
[1758645402354,7.26,218.34,218.23,71.4823]
[1758645402650,7.26,218.34,218.25,4.121]
[1758645402853,7.26,218.34,218.24,64.1103]
[1758645403357,84.18,218.37,218.27,7.37]
[1758645403656,7.26,218.39,218.27,7.37]
[1758645403955,124.92,218.38,218.27,7.37]
[1758645404355,124.92,218.38,218.31,4.12]
[1758645404855,124.92,218.38,218.27,7.37]
[1758645405246,7.26,218.37,218.22,7.37]
[1758645406255,7.26,218.34,218.26,4.1208]
[1758645406955,7.26,218.34,218.27,4.1206]
[1758645407553,7.26,218.34,218.25,4.1211]
[1758645407748,11.3796,218.34,218.25,4.1211]
[1758645408157,7.26,218.34,218.23,4.1215]
[1758645408356,7.26,218.34,218.22,7.37]
[1758645408659,92.2,218.33,218.22,7.37]
[1758645409356,92.2,218.33,218.26,4.1209]
[1758645410058,92.2,218.33,218.22,7.37]
[1758645410059,92.2,218.33,218.27,4.1206]
[1758645410356,92.2,218.33,218.22,7.37]
[1758645410556,92.2,218.33,218.23,64.113]
[1758645410756,92.2,218.33,218.22,7.37]
[1758645411059,124.36,218.33,218.23,64.1128]
[1758645411358,7.26,218.39,218.27,71.4713]
[1758645411754,124.28,218.4,218.34,4.1193]
[1758645412061,7.26,218.41,218.31,64.0897]
[1758645412360,7.26,218.41,218.36,4.1189]
[1758645412661,7.26,218.41,218.32,64.0851]
[1758645412855,7.26,218.41,218.33,7.37]
[1758645413064,124.24,218.44,218.35,64.0781]
[1758645413562,131.42,218.44,218.39,4.1185]
[1758645413754,7.18,218.43,218.39,4.1185]
[1758645414159,124.24,218.44,218.35,64.0779]
[1758645414359,7.18,218.46,218.37,7.72]
[1758645414863,124.2,218.48,218.39,64.0655]
[1758645415165,124.2,218.48,218.37,7.72]
[1758645415855,124.2,218.48,218.38,64.0687]
[1758645416258,124.2,218.48,218.39,64.0657]
[1758645416459,353.22,218.5,218.41,64.0604]
[1758645416661,346.04,218.5,218.42,71.7771]
[1758645416959,346.04,218.5,218.44,64.0515]
[1758645417167,131.16,218.54,218.44,64.0515]
[1758645417363,7.18,218.54,218.45,64.0463]
[1758645417567,124.0,218.58,218.48,64.0399]
[1758645417772,7.18,218.62,218.48,64.0399]
[1758645417967,124.0,218.59,218.5,7.72]
[1758645418157,7.18,218.62,218.53,4.1158]
[1758645418362,131.12,218.62,218.51,64.0303]
[1758645419768,131.12,218.62,218.55,4.1155]
[1758645419964,131.12,218.62,218.5,7.72]
[1758645420371,7.18,218.62,218.53,64.0238]
[1758645420560,346.2,218.63,218.56,64.0166]
[1758645420759,7.18,218.67,218.56,64.0166]
[1758645421058,7.18,218.67,218.55,7.72]
[1758645421463,123.74,218.68,218.59,7.72]
[1758645421966,123.74,218.68,218.62,4.1141]
[1758645422359,123.74,218.68,218.64,11.8337]
[1758645422659,7.18,218.72,218.65,7.72]
[1758645422969,123.58,218.74,218.66,4.1134]
[1758645423363,346.14,218.76,218.66,63.9871]
[1758645423570,7.18,218.77,218.7,4.1126]
[1758645423773,7.18,218.83,218.71,63.9723]
[1758645423963,123.54,218.86,218.74,7.72]
[1758645424370,63.9378,218.83,218.68,7.72]
[1758645424570,63.9435,218.81,218.68,7.72]
[1758645424769,7.18,218.8,218.68,7.72]
[1758645425576,187.5299,218.79,218.68,7.72]
[1758645426370,4.1115,218.77,218.68,7.72]
[1758645426672,7.18,218.76,218.63,11.8339]
[1758645427865,7.18,218.76,218.62,409.9979]
[1758645427866,7.18,218.76,218.64,63.9929]
[1758645428173,31.22,218.82,218.67,7.72]
[1758645428577,31.22,218.82,218.69,4.1127]
[1758645428773,31.22,218.82,218.7,7.72]
[1758645429471,4.1106,218.81,218.7,7.72]
[1758645430879,63.9471,218.8,218.7,7.72]
[1758645431083,63.9534,218.78,218.65,7.72]
[1758645431275,7.18,218.76,218.65,7.72]
[1758645431582,7.18,218.72,218.62,346.0]
[1758645431774,50.38,218.77,218.63,7.12]
[1758645431973,50.38,218.77,218.63,11.2339]
[1758645432276,71.0788,218.76,218.63,7.12]
[1758645432478,7.12,218.73,218.56,7.12]
[1758645432674,7.12,218.73,218.58,7.12]
[1758645432877,7.12,218.73,218.59,5.20645109]
[1758645433075,7.12,218.73,218.6,7.12]
[1758645433477,89.98,218.78,218.63,7.12]
[1758645433779,7.12,218.74,218.58,7.12]
[1758645433981,4.1122,218.73,218.61,4.1142]
[1758645434981,4.1125,218.71,218.61,4.1142]
[1758645435382,7.12,218.74,218.61,4.1142]
[1758645435778,7.12,218.74,218.58,7.12]
[1758645436883,4.1124,218.72,218.6,4.1145]
[1758645437084,7.12,218.74,218.6,7.12]
[1758645437478,64.0291,218.52,218.3,13.71]
[1758645437681,7.12,218.44,218.24,64.1095]
[1758645437980,7.12,218.44,218.24,7.12]
[1758645438179,7.12,218.44,218.27,7.12]
[1758645438386,125.52,218.46,218.32,7.12]
[1758645438685,7.12,218.5,218.31,64.0896]
[1758645438686,7.12,218.5,218.34,7.12]
[1758645439584,7.12,218.5,218.35,4.1192]
[1758645439985,345.72,218.51,218.23,7.12]
[1758645440179,64.0785,218.35,218.23,7.12]
[1758645440380,64.0785,218.35,218.18,7.12]
[1758645440381,7.12,218.34,218.18,7.12]
[1758645440579,4.12,218.32,218.18,7.12]
[1758645440889,7.12,218.34,218.18,7.12]
[1758645441188,7.12,218.39,218.24,64.1104]
[1758645441389,7.12,218.39,218.26,4.1209]
[1758645442089,7.12,218.39,218.25,7.12]
[1758645442390,71.1866,218.39,218.25,7.12]
[1758645442683,75.3053,218.39,218.25,7.12]
[1758645443187,4.1191,218.37,218.25,7.12]
[1758645443990,6.98,218.36,218.22,4.1215]
[1758645444685,4.1193,218.35,218.22,4.1215]
[1758645445393,6.98,218.36,218.22,4.1215]
[1758645445786,73.16,218.36,218.22,4.1215]
[1758645446186,6.98,218.36,218.24,4.1212]
[1758645446491,6.98,218.36,218.25,7.24]
[1758645447693,6.98,218.36,218.18,71.3677]
[1758645447991,4.1193,218.35,218.2,4.122]
[1758645448192,6.98,218.36,218.23,64.1132]
[1758645448494,6.98,218.36,218.21,7.24]
[1758645449493,4.1196,218.34,218.21,11.3619]
[1758645449699,6.98,218.33,218.21,7.24]
[1758645450794,11.0998,218.33,218.21,7.24]
[1758645453495,6.98,218.33,218.22,4.1217]
[1758645454394,5.20645109,218.43,218.25,64.107]
[1758645454590,132.6,218.41,218.25,7.24]
[1758645454789,64.0696,218.38,218.25,7.24]
[1758645454995,6.98,218.31,218.19,7.24]
[1758645456101,6.98,218.31,218.2,4.122]
[1758645456601,6.98,218.31,218.19,7.24]
[1758645456798,6.98,218.31,218.22,4.1217]
[1758645456992,6.98,218.31,218.23,64.1131]
[1758645457595,6.98,218.31,218.21,64.1192]
[1758645458201,6.98,218.31,218.22,4.1216]
[1758645458400,6.98,218.31,218.21,64.119]
[1758645458801,102.28,218.37,218.26,4.1209]
[1758645458998,6.98,218.36,218.26,4.1209]
[1758645459209,11.0992,218.36,218.23,11.3613]
[1758645459409,11.0992,218.36,218.23,7.24]
[1758645460308,6.98,218.36,218.25,64.1071]
[1758645460610,6.98,218.42,218.3,7.24]
[1758645460813,6.98,218.42,218.33,4.1196]
[1758645461109,6.98,218.42,218.32,64.0869]
[1758645461302,6.98,218.42,218.32,4.1197]
[1758645461499,64.0497,218.45,218.25,64.1071]
[1758645461804,64.0497,218.45,218.28,71.3386]
[1758645462010,6.98,218.43,218.29,64.0956]
[1758645462411,6.98,218.43,218.34,4.1193]
[1758645462605,6.98,218.43,218.33,7.24]
[1758645462910,6.98,218.43,218.28,71.3386]
[1758645463104,6.98,218.43,218.31,64.0891]
[1758645463300,6.98,218.43,218.32,64.086]
[1758645463500,6.98,218.43,218.33,7.24]
[1758645463705,6.98,218.43,218.38,4.1187]
[1758645464815,6.98,218.47,218.35,4.1191]
[1758645465704,4.1174,218.46,218.36,4.1189]
[1758645465909,4.1174,218.46,218.33,7.24]
[1758645466611,6.98,218.47,218.36,64.0752]
[1758645466812,6.98,218.47,218.37,64.0719]
[1758645467110,6.98,218.47,218.38,4.1186]
[1758645467607,6.98,218.47,218.36,64.0737]
[1758645468816,124.74,218.51,218.41,4.1181]
[1758645469712,128.8564,218.51,218.39,7.24]
[1758645469912,6.98,218.5,218.39,7.24]
[1758645470411,6.98,218.47,218.33,7.24]
[1758645471513,6.98,218.43,218.33,7.24]
[1758645472512,4.1183,218.41,218.33,11.3595]
[1758645473207,11.0978,218.43,218.35,4.1192]
[1758645473406,7.11,218.52,218.4,64.0611]
[1758645473608,71.1067,218.63,218.43,71.2431]
[1758645473810,4.1153,218.57,218.48,4.1167]
[1758645474006,4.1153,218.57,218.43,7.19]
[1758645474213,4.1153,218.57,218.43,71.2435]
[1758645474413,7.11,218.58,218.45,64.0481]
[1758645474610,7.11,218.58,218.46,64.0453]
[1758645474921,7.11,218.58,218.51,4.1161]
[1758645475418,7.11,218.58,218.48,64.039]
[1758645475619,51.64,218.62,218.48,64.039]
[1758645476114,7.11,218.63,218.51,7.19]
[1758645476422,7.11,218.63,218.51,71.2199]
[1758645476620,124.44,218.65,218.55,7.19]
[1758645477320,7.11,218.68,218.56,64.0163]
[1758645477618,71.0946,218.67,218.5,7.19]
[1758645477806,7.11,218.64,218.51,64.0309]
[1758645479421,4.1131,218.68,218.55,7.19]
[1758645479616,346.16,218.71,218.58,64.0089]
[1758645479921,346.16,218.71,218.59,71.195]
[1758645480419,346.16,218.71,218.62,4.1141]
[1758645482815,7.11,218.73,218.64,4.1137]
[1758645483120,7.11,218.73,218.59,7.19]
[1758645483319,7.11,218.73,218.6,64.0048]
[1758645483520,7.11,218.73,218.64,63.9925]
[1758645483721,123.88,218.77,218.64,63.9925]
[1758645483921,123.88,218.77,218.67,4.1131]
[1758645484519,123.88,218.77,218.64,4.1138]
[1758645484717,123.88,218.77,218.63,7.19]
[1758645485022,123.88,218.77,218.66,4.1134]
[1758645485622,7.11,218.78,218.68,63.9807]
[1758645485822,7.11,218.82,218.69,63.9784]
[1758645486019,7.11,218.82,218.72,4.1122]
[1758645486221,7.11,218.82,218.71,71.1617]
[1758645487213,7.11,218.82,218.72,63.9697]
[1758645487418,7.11,218.87,218.75,7.19]
[1758645487722,7.11,218.87,218.76,63.9578]
[1758645487923,7.11,218.87,218.8,4.1108]
[1758645488125,7.11,218.92,218.79,7.19]
[1758645489022,7.11,218.92,218.69,63.9784]
[1758645489221,187.4875,218.94,218.73,7.19]
[1758645489222,71.0185,218.93,218.73,7.19]
[1758645489422,7.11,218.89,218.77,4.1113]
[1758645489620,7.11,218.89,218.73,7.19]
[1758645489925,4.1098,218.86,218.73,11.302]
[1758645490225,7.11,218.85,218.73,11.302]
[1758645490423,7.11,218.85,218.73,7.19]
[1758645490616,7.11,218.85,218.77,4.1113]
[1758645490814,4.1092,218.89,218.77,11.3013]
[1758645491822,7.11,218.9,218.79,4.1109]
[1758645492417,7.11,218.9,218.81,4.1106]
[1758645493122,123.5,218.91,218.83,4.1102]
[1758645493325,123.5,218.91,218.8,7.04]
[1758645494222,123.5,218.91,218.84,4.11]
[1758645495227,7.42,218.9,218.8,7.04]
[1758645496331,123.5,218.91,218.8,7.04]
[1758645497337,123.5,218.91,218.84,4.11]
[1758645497730,7.42,218.95,218.83,7.04]
[1758645497930,7.42,218.95,218.83,11.1501]
[1758645498230,7.42,218.95,218.83,7.04]
[1758645498532,4.1082,218.94,218.84,4.11]
[1758645500629,7.42,218.95,218.83,7.04]
[1758645500834,71.3204,218.96,218.78,7.04]
[1758645501235,71.326,218.94,218.78,7.04]
[1758645501924,7.42,218.94,218.78,7.04]
[1758645502734,7.42,218.9,218.82,4.1102]
[1758645502928,7.42,218.9,218.78,7.04]
[1758645503333,4.1096,218.87,218.78,7.04]
[1758645503632,11.3896,218.87,218.78,7.04]
[1758645503935,7.28,218.92,218.79,63.9464]
[1758645504238,7.28,218.92,218.81,63.9424]
[1758645504531,7.28,218.92,218.86,4.1096]
[1758645504934,7.28,218.92,218.81,63.9424]
[1758645505232,7.28,218.92,218.82,63.9392]
[1758645505436,468.78,218.97,218.84,7.55]
[1758645507535,472.8876,218.97,218.86,4.1096]
[1758645507736,468.78,218.97,218.86,4.1096]
[1758645508134,468.78,218.97,218.87,4.1093]
[1758645508337,468.78,218.97,218.84,7.55]